bitfinex/quotes_SOLUSD_20250928
["timestamp","ask_amount","ask_price","bid_price","bid_amount"]
[1759092622507,0.69,207.79,207.74,0.2]
[1759092622508,26.69,207.79,207.74,0.2]
[1759092622706,0.69,207.78,207.74,0.86]
[1759092623144,26.0,207.77,207.74,0.86]
[1759092623500,26.0,207.77,207.74,0.2]
[1759092623709,26.0,207.77,207.75,0.66]
[1759092624123,5.5026045,207.79,207.75,0.66]
[1759092624433,4.8126045,207.79,207.74,0.2]
[1759092624617,0.69,207.78,207.74,0.86]
[1759092626833,4.81255113,207.79,207.74,0.2]
[1759092627131,1.66310154,207.75,207.74,0.2]
[1759092627520,2.35310154,207.75,207.74,0.2]
[1759092628730,7.16657927,207.75,207.74,0.2]
[1759092630619,27.66310154,207.79,207.74,0.86]
[1759092630816,5.50234434,207.8,207.74,0.86]
[1759092631016,16.14221541,207.81,207.75,0.66]
[1759092631335,26.0,207.78,207.75,0.66]
[1759092632330,30.8125703,207.79,207.75,0.66]
[1759092632527,31.5025703,207.79,207.75,0.66]
[1759092634023,0.69,207.78,207.74,0.2]
[1759092634225,26.0,207.76,207.74,0.2]
[1759092634448,26.69,207.76,207.74,0.2]
[1759092635145,29.29001145,207.76,207.74,0.2]
[1759092636024,26.0,207.75,207.74,0.2]
[1759092636228,30.81347773,207.75,207.74,0.2]
[1759092636428,31.50347773,207.75,207.74,0.2]
[1759092642362,45.98678572,207.75,207.74,0.2]
[1759092643038,59.58237973,207.75,207.74,0.2]
[1759092644655,59.58237973,207.75,207.74,1e-08]
[1759092645146,48.58679717,207.75,207.74,1e-08]
[1759092650943,47.89679717,207.75,207.74,1e-08]
[1759092651337,48.59679717,207.75,207.74,1e-08]
[1759092660157,62.19239118,207.75,207.74,1e-08]
[1759092661049,99.47239118,207.75,207.74,1e-08]
[1759092661659,13.59559401,207.7,207.69,1e-08]
[1759092661868,53.47560546,207.7,207.69,1e-08]
[1759092662070,54.17560546,207.7,207.69,1e-08]
[1759092662255,56.10745931,207.7,207.69,1e-08]
[1759092662440,59.34919351,207.7,207.69,1e-08]
[1759092662642,61.94920496,207.7,207.69,1e-08]
[1759092664268,63.52210725,207.7,207.69,1e-08]
[1759092665379,63.52210725,207.7,207.63,1e-08]
[1759092665380,39.59559401,207.64,207.63,1e-08]
[1759092665582,42.19560546,207.64,207.63,1e-08]
[1759092665875,80.17560546,207.64,207.63,1e-08]
[1759092666074,82.10792594,207.64,207.63,1e-08]
[1759092666268,49.64395368,207.64,207.63,1e-08]
[1759092666453,90.71832602,207.64,207.63,1e-08]
[1759092666657,26.0,207.61,207.6,0.2]
[1759092666859,28.60001145,207.61,207.6,0.2]
[1759092667361,2.60001145,207.61,207.6,0.2]
[1759092667868,7.41673511,207.61,207.6,0.2]
[1759092668858,21.71232912,207.61,207.6,1e-08]
[1759092669071,58.99232912,207.61,207.6,1e-08]
[1759092669588,39.59559401,207.57,207.52,0.72]
[1759092669756,33.41859189,207.53,207.52,0.72]
[1759092670266,33.79858044,207.53,207.52,0.72]
[1759092670469,48.445043,207.53,207.49,2.2]
[1759092670768,48.445043,207.53,207.5,0.72]
[1759092670769,2.60001145,207.51,207.5,0.72]
[1759092670968,2.60001145,207.51,207.49,2.2]
[1759092671180,2.60001145,207.51,207.49,2.92]
[1759092671855,4.8192771,207.5,207.49,2.92]
[1759092672856,7.7992771,207.5,207.49,2.92]
[1759092673668,2.98,207.5,207.49,2.92]
[1759092673867,7.7992771,207.5,207.49,2.92]
[1759092674472,4.81927172,207.51,207.49,2.92]
[1759092674667,26.0,207.5,207.49,2.2]
[1759092674872,7.79927172,207.51,207.49,2.2]
[1759092675187,7.79927172,207.51,207.5,0.71]
[1759092675577,4.8188235,207.52,207.5,0.71]
[1759092675760,30.8188235,207.52,207.5,0.71]
[1759092677071,26.0,207.53,207.5,0.71]
[1759092677384,4.81766075,207.57,207.5,0.71]
[1759092677571,26.0,207.55,207.5,0.71]
[1759092677771,26.0,207.54,207.5,0.71]
[1759092679181,30.81853291,207.54,207.5,0.71]
[1759092679481,31.47853291,207.54,207.5,0.71]
[1759092679686,26.0,207.53,207.51,0.71]
[1759092680782,26.0,207.53,207.49,2.92]
[1759092680984,26.0,207.53,207.5,0.72]
[1759092681176,26.0,207.5,207.49,2.92]
[1759092681781,26.0,207.5,207.49,2.2]
[1759092683221,30.8192771,207.5,207.49,2.2]
[1759092683583,4.8192771,207.5,207.49,2.2]
[1759092683766,30.8192771,207.5,207.49,2.2]
[1759092684872,4.8192771,207.5,207.49,2.2]
[1759092686805,4.81904563,207.51,207.49,2.92]
[1759092686972,4.81904563,207.51,207.49,2.2]
[1759092687297,26.0,207.5,207.49,2.2]
[1759092687678,26.7,207.5,207.49,2.2]
[1759092688381,26.7,207.5,207.45,0.72]
[1759092688382,40.29559401,207.5,207.45,0.72]
[1759092688594,3.30001145,207.49,207.45,0.72]
[1759092689190,26.0,207.46,207.45,0.72]
[1759092689499,26.0,207.46,207.42,0.2]
[1759092689500,26.0,207.46,207.43,0.72]
[1759092689804,26.0,207.46,207.44,0.72]
[1759092691100,4.82043865,207.45,207.44,0.72]
[1759092691291,4.82043865,207.45,207.42,0.2]
[1759092691492,4.82043865,207.45,207.43,0.72]
[1759092691990,4.82043865,207.45,207.42,0.2]
[1759092692297,4.82043865,207.45,207.43,0.72]
[1759092692898,4.82043865,207.45,207.44,0.72]
[1759092693199,16.87153529,207.45,207.42,0.2]
[1759092694080,16.87153529,207.45,207.42,0.92]
[1759092695197,26.7,207.47,207.43,0.72]
[1759092695198,4.8202063,207.46,207.43,0.72]
[1759092696182,4.8202063,207.46,207.42,0.2]
[1759092696383,4.8202063,207.46,207.43,0.72]
[1759092696685,4.8202063,207.46,207.44,0.72]
[1759092696908,4.8202063,207.46,207.42,0.92]
[1759092696909,16.87072206,207.46,207.42,0.92]
[1759092697088,16.87072206,207.46,207.43,0.72]
[1759092697287,26.0,207.44,207.43,0.72]
[1759092698686,30.82067103,207.44,207.43,0.72]
[1759092701411,26.0,207.43,207.42,0.2]
[1759092701784,26.0,207.43,207.42,0.92]
[1759092703501,30.82090343,207.43,207.42,0.92]
[1759092704612,42.87072206,207.46,207.42,0.92]
[1759092704791,26.0,207.44,207.43,0.72]
[1759092705489,16.87072206,207.46,207.42,0.2]
[1759092705692,16.87072206,207.46,207.42,0.92]
[1759092705881,17.57072206,207.46,207.42,0.92]
[1759092707204,16.87072206,207.46,207.42,0.2]
[1759092707507,16.87072206,207.46,207.43,0.72]
[1759092707695,17.57072206,207.46,207.43,0.72]
[1759092707895,16.87072206,207.46,207.43,0.72]
[1759092708094,17.57072206,207.46,207.43,0.72]
[1759092708303,16.87072206,207.46,207.43,0.72]
[1759092708717,152.8,207.56,207.44,0.72]
[1759092708718,0.7,207.51,207.44,0.72]
[1759092709112,0.7,207.51,207.44,2.38913932]
[1759092709307,0.7,207.51,207.45,0.72]
[1759092710299,26.0,207.48,207.45,0.72]
[1759092710486,26.0,207.47,207.45,0.72]
[1759092710899,26.0,207.47,207.43,0.72]
[1759092711208,26.7,207.47,207.43,0.72]
[1759092711608,0.7,207.46,207.42,0.2]
[1759092711912,0.7,207.46,207.42,0.92]
[1759092712291,4.82043865,207.45,207.42,0.92]
[1759092712912,4.82043865,207.45,207.43,0.72]
[1759092714415,4.8202063,207.46,207.43,0.72]
[1759092715308,5.52000445,207.47,207.43,0.72]
[1759092716111,4.82000445,207.47,207.43,0.72]
[1759092716323,26.0,207.48,207.43,0.72]
[1759092716514,30.81979816,207.48,207.43,0.72]
[1759092717902,31.51979816,207.48,207.44,0.72]
[1759092720896,26.0,207.48,207.42,0.2]
[1759092721101,26.0,207.48,207.43,0.72]
[1759092721302,26.0,207.48,207.42,0.2]
[1759092721303,26.7,207.48,207.44,0.72]
[1759092721928,30.81981404,207.48,207.44,0.72]
[1759092722226,0.7,207.47,207.44,0.72]
[1759092723313,5.5200278,207.47,207.42,0.92]
[1759092723513,5.5200278,207.47,207.42,0.2]
[1759092723713,27.66913932,207.44,207.42,0.2]
[1759092724238,26.0,207.43,207.42,0.2]
[1759092725327,26.7,207.43,207.42,0.2]
[1759092725624,26.0,207.43,207.42,0.2]
[1759092726102,30.82090343,207.43,207.42,0.2]
[1759092727005,31.52090343,207.43,207.42,0.2]
[1759092728231,30.82090343,207.43,207.42,0.2]
[1759092728521,26.0,207.43,207.42,0.2]
[1759092728825,4.82086573,207.44,207.42,0.2]
[1759092729207,5.52086573,207.44,207.42,0.2]
[1759092731203,4.82086573,207.44,207.42,0.2]
[1759092731409,5.52086573,207.44,207.42,0.2]
[1759092733513,4.82086573,207.44,207.42,0.2]
[1759092733719,26.0,207.46,207.43,0.71]
[1759092733924,0.71,207.49,207.43,0.71]
[1759092734228,170.08,207.54,207.43,0.71]
[1759092734229,2.64325439,207.54,207.43,0.71]
[1759092734522,2.37913932,207.52,207.43,0.71]
[1759092735111,26.0,207.51,207.43,0.71]
[1759092735503,0.71,207.54,207.46,1.66913932]
[1759092735770,26.71,207.54,207.47,0.71]
[1759092735912,26.0,207.54,207.47,0.71]
[1759092737230,26.0,207.54,207.47,5.52994677]
[1759092737442,30.81837277,207.54,207.48,0.71]
[1759092738412,0.71,207.53,207.45,0.71]
[1759092738606,2.37913932,207.53,207.42,6.69027139]
[1759092738810,0.71,207.52,207.43,0.71]
[1759092739639,4.81904486,207.51,207.43,5.53090214]
[1759092739846,5.52904486,207.51,207.44,0.71]
[1759092742733,26.0,207.48,207.42,0.86]
[1759092742929,0.69,207.47,207.42,0.86]
[1759092743145,0.69,207.46,207.42,0.86]
[1759092743527,26.69,207.48,207.42,0.86]
[1759092744146,4.81997397,207.47,207.42,0.86]
[1759092744443,5.50997397,207.47,207.42,0.86]
[1759092744651,0.69,207.46,207.42,0.86]
[1759092744849,0.69,207.45,207.42,0.2]
[1759092745062,0.69,207.44,207.42,0.2]
[1759092745233,0.69,207.43,207.42,0.2]
[1759092746330,5.51090343,207.43,207.42,0.2]
[1759092746952,0.69,207.43,207.42,0.2]
[1759092747653,12.04824351,207.5,207.42,0.2]
[1759092747823,44.09039086,207.56,207.42,0.86]
[1759092747824,26.0,207.46,207.42,0.86]
[1759092748234,26.69,207.46,207.42,0.86]
[1759092748434,31.51039339,207.46,207.42,0.86]
[1759092748841,31.51039339,207.46,207.42,0.2]
[1759092749328,45.23004847,207.46,207.42,0.2]
[1759092749952,43.56090915,207.46,207.42,0.2]
[1759092750140,45.23004847,207.46,207.42,0.2]
[1759092751951,26.0,207.43,207.42,0.2]
[1759092752453,31.51090343,207.43,207.42,0.2]
[1759092752655,30.82090343,207.43,207.42,0.2]
[1759092752833,24.09418241,207.52,207.42,0.2]
[1759092752834,4.01786631,207.59,207.42,0.86]
[1759092753035,5.44277031,207.62,207.53,1.66913932]
[1759092753036,1.93241383,207.62,207.53,1.66913932]
[1759092753338,1.93241383,207.62,207.57,1.66913932]
[1759092753639,0.69,207.69,207.6,1.66913932]
[1759092753838,0.69,207.69,207.57,26.0]
[1759092753839,0.69,207.68,207.61,38.52]
[1759092754032,0.69,207.67,207.61,40.18913932]
[1759092754235,0.69,207.66,207.6,13.59559401]
[1759092754445,0.69,207.65,207.61,38.76]
[1759092754647,0.69,207.64,207.61,38.76]
[1759092754938,0.69,207.63,207.58,16.19808683]
[1759092755135,0.69,207.63,207.59,38.74]
[1759092755331,0.69,207.65,207.59,38.74]
[1759092756253,0.69,207.65,207.6,2.60249282]
[1759092756443,0.69,207.64,207.6,2.60249282]
[1759092756649,0.69,207.64,207.56,4.8149552]
[1759092756839,0.69,207.63,207.57,38.74]
[1759092757163,0.69,207.62,207.57,38.74]
[1759092757338,0.69,207.62,207.58,2.60249282]
[1759092758130,0.69,207.64,207.58,2.60249282]
[1759092758758,0.69,207.67,207.58,13.59559401]
[1759092758939,0.69,207.66,207.6,2.60249282]
[1759092759437,0.69,207.66,207.58,13.59559401]
[1759092759645,0.69,207.65,207.59,38.68]
[1759092759832,0.69,207.64,207.59,41.28249282]
[1759092760034,0.69,207.63,207.59,41.28249282]
[1759092760236,0.2,207.7,207.62,13.59559401]
[1759092760562,0.2,207.7,207.68,2.60249282]
[1759092760767,0.2,207.7,207.68,41.28249282]
[1759092761141,0.2,207.7,207.66,2.60249282]
[1759092761342,0.69,207.69,207.66,2.60249282]
[1759092761541,0.2,207.7,207.67,38.68]
[1759092761747,0.2,207.7,207.67,41.28249282]
[1759092762665,0.69,207.69,207.6,12.03775038]
[1759092762837,5.50510015,207.68,207.63,2.60249282]
[1759092763042,0.69,207.67,207.63,2.60249282]
[1759092763358,0.69,207.66,207.63,2.60249282]
[1759092763863,4.81510015,207.68,207.63,2.60249282]
[1759092764055,0.2,207.7,207.67,2.60249282]
[1759092764263,0.2,207.7,207.68,38.68]
[1759092764772,5.01467412,207.7,207.68,38.68]
[1759092764944,5.70467412,207.7,207.68,38.68]
[1759092765962,0.2,207.7,207.68,41.28249282]
[1759092769660,0.89,207.7,207.68,41.28249282]
[1759092770165,0.2,207.7,207.68,41.28249282]
[1759092772865,0.2,207.7,207.69,2.60249282]
[1759092776054,0.2,207.7,207.64,4.81596704]
[1759092776055,0.91,207.7,207.64,13.59559401]
[1759092776252,5.7246691,207.7,207.69,2.60249282]
[1759092776461,5.7246691,207.7,207.69,41.06249282]
[1759092776647,0.91,207.7,207.69,41.06249282]
[1759092777349,0.91,207.7,207.69,41.04249282]
[1759092777561,5.72463649,207.7,207.64,79.3]
[1759092777872,0.71,207.69,207.65,38.44]
[1759092778064,4.81533201,207.67,207.65,38.44]
[1759092778267,0.71,207.66,207.65,38.44]
[1759092779054,4.81533201,207.67,207.65,38.44]
[1759092779262,5.52533201,207.67,207.65,38.44]
[1759092779550,0.71,207.67,207.65,38.44]
[1759092780173,5.52538554,207.67,207.65,38.44]
[1759092780552,0.71,207.67,207.65,38.44]
[1759092780887,0.71,207.69,207.65,38.44]
[1759092781253,0.71,207.68,207.65,38.44]
[1759092781763,0.71,207.67,207.65,38.44]
[1759092781956,0.71,207.69,207.65,38.44]
[1759092782167,5.01483007,207.7,207.65,38.44]
[1759092782468,0.2,207.7,207.68,2.60249282]
[1759092782669,0.2,207.7,207.69,38.38]
[1759092786082,0.2,207.7,207.69,40.98249282]
[1759092786277,0.2,207.7,207.69,38.38]
[1759092786754,5.72463649,207.7,207.67,2.60249282]
[1759092786955,5.72463649,207.7,207.68,38.34]
[1759092788163,0.2,207.7,207.68,40.94249282]
[1759092788771,0.71,207.69,207.6,93.78330799]
[1759092788975,0.71,207.68,207.61,38.32]
[1759092789277,0.71,207.67,207.61,38.32]
[1759092789452,0.71,207.66,207.61,38.32]
[1759092789659,0.71,207.65,207.61,38.32]
[1759092789860,0.71,207.64,207.6,26.0]
[1759092790077,19.65377662,207.7,207.61,38.3]
[1759092790078,4.81579581,207.65,207.61,38.3]
[1759092790393,5.52579581,207.65,207.62,38.3]
[1759092790571,4.81559332,207.66,207.62,40.90249282]
[1759092790884,0.71,207.65,207.62,40.90249282]
[1759092792383,5.52581883,207.65,207.62,38.3]
[1759092794690,0.67,207.64,207.57,92.89559401]
[1759092794875,0.67,207.63,207.57,92.89559401]
[1759092795181,0.67,207.62,207.58,38.22]
[1759092795390,16.85530835,207.65,207.58,38.22]
[1759092795685,0.67,207.62,207.58,38.22]
[1759092796367,0.67,207.62,207.59,38.24]
[1759092796898,4.81672366,207.61,207.57,81.90249282]
[1759092797072,4.81672366,207.61,207.58,38.22]
[1759092797387,0.67,207.6,207.58,38.22]
[1759092797788,0.67,207.6,207.57,79.3]
[1759092797998,0.67,207.6,207.59,38.22]
[1759092798575,4.81672366,207.61,207.59,38.22]
[1759092798783,5.48672366,207.61,207.59,38.22]
[1759092804572,12.70077877,207.63,207.59,38.22]
[1759092804773,0.66,207.62,207.59,38.22]
[1759092805593,0.66,207.61,207.59,38.22]
[1759092806100,5.47684849,207.61,207.59,38.22]
[1759092807091,5.47684849,207.61,207.6,38.12]
[1759092807889,5.47684849,207.61,207.6,38.1]
[1759092809191,17.51865765,207.61,207.5,79.3]
[1759092809376,3.26249282,207.6,207.51,13.59559401]
[1759092809572,0.66,207.59,207.52,38.08]
[1759092809771,2.60249282,207.6,207.52,38.08]
[1759092809972,0.66,207.6,207.52,40.68249282]
[1759092810590,0.66,207.59,207.52,40.68249282]
[1759092811291,14.64381429,207.62,207.52,45.50124325]
[1759092811474,0.66,207.61,207.53,13.59559401]
[1759092811789,0.66,207.61,207.54,2.60249282]
[1759092812676,4.81695568,207.6,207.54,2.60249282]
[1759092814388,4.81695568,207.6,207.54,1.66675118]
[1759092815174,5.47695568,207.6,207.54,1.66675118]
[1759092815482,5.47695568,207.6,207.55,38.04]
[1759092815681,0.66,207.59,207.55,38.04]
[1759092820306,5.47720405,207.59,207.55,38.04]
[1759092820482,4.81720405,207.59,207.55,38.04]
[1759092820675,0.66,207.58,207.51,106.96675118]
[1759092820881,4.81788398,207.56,207.52,37.96]
[1759092821199,0.66,207.55,207.53,37.96]
[1759092821396,4.81788398,207.56,207.53,37.96]
[1759092821614,0.66,207.55,207.53,37.96]
[1759092823096,0.66,207.55,207.51,26.0]
[1759092823281,0.66,207.55,207.52,37.94]
[1759092827092,0.66,207.58,207.52,37.94]
[1759092827482,5.47765187,207.57,207.52,37.94]
[1759092827690,4.81765187,207.57,207.52,37.94]
[1759092828002,0.66,207.56,207.52,37.94]
[1759092828174,5.47743187,207.58,207.52,42.75873459]
[1759092828376,0.66,207.6,207.52,42.75873459]
[1759092828597,26.0,207.61,207.53,1.66675118]
[1759092828902,0.66,207.59,207.54,37.88]
[1759092829203,0.66,207.58,207.55,37.88]
[1759092830097,4.81765187,207.57,207.55,37.88]
[1759092830303,0.66,207.56,207.55,37.88]
[1759092830984,0.66,207.56,207.51,26.0]
[1759092831185,0.66,207.55,207.52,37.84]
[1759092832403,4.81765187,207.57,207.52,37.84]
[1759092832594,0.66,207.56,207.52,37.84]
[1759092833595,4.81765187,207.57,207.52,37.84]
[1759092833789,5.47765187,207.57,207.52,37.84]
[1759092835113,0.66,207.56,207.52,37.84]
[1759092836196,5.47791689,207.56,207.52,37.84]
[1759092839393,16.86024303,207.59,207.52,37.84]
[1759092839594,0.66,207.55,207.52,37.84]
[1759092842021,4.81695568,207.6,207.52,42.6588116]
[1759092842220,0.66,207.59,207.52,44.32556278]
[1759092843212,4.81695568,207.6,207.52,44.32556278]
[1759092843718,5.47695568,207.6,207.52,44.32556278]
[1759092845229,0.66,207.59,207.53,13.59559401]
[1759092845400,0.66,207.59,207.54,37.72]
[1759092846312,0.66,207.59,207.52,13.59559401]
[1759092846524,0.66,207.59,207.53,37.7]
[1759092847109,5.47732563,207.59,207.53,37.7]
[1759092848412,0.66,207.59,207.53,42.5185792]
[1759092850325,5.47714818,207.6,207.53,42.5185792]
[1759092850925,5.47723208,207.59,207.53,42.5185792]
[1759092851426,5.47723208,207.59,207.53,121.8185792]
[1759092856135,5.47723208,207.59,207.53,117.0]
[1759092856430,5.47723208,207.59,207.54,37.6]
[1759092856813,5.47723208,207.59,207.53,79.3]
[1759092857011,5.47723208,207.59,207.54,37.58]
[1759092857214,0.69,207.58,207.54,37.58]
[1759092859534,12.0417238,207.62,207.54,37.58]
[1759092859827,0.69,207.61,207.53,84.11855062]
[1759092860228,12.0417238,207.62,207.53,84.11855062]
[1759092860414,0.69,207.6,207.54,37.56]
[1759092860726,4.81718772,207.59,207.53,84.11855062]
[1759092860932,5.53718772,207.59,207.54,37.56]
[1759092861110,5.53718772,207.59,207.55,37.56]
[1759092864936,5.53718772,207.59,207.53,79.3]
[1759092865133,5.53718772,207.59,207.54,37.54]
[1759092866944,5.53718772,207.59,207.55,1.66675118]
[1759092868221,0.72,207.58,207.55,1.66675118]
[1759092869346,5.53742868,207.58,207.55,1.66675118]
[1759092874554,0.72,207.57,207.55,1.66675118]
[1759092876045,12.04253361,207.6,207.53,79.3]
[1759092876338,5.53718772,207.59,207.54,40.12416144]
[1759092876541,0.72,207.58,207.54,40.12416144]
[1759092876725,4.81718772,207.59,207.54,40.12416144]
[1759092876928,0.72,207.58,207.54,40.12416144]
[1759092877119,4.81718772,207.59,207.54,2.60416144]
[1759092877321,0.72,207.58,207.55,37.52]
[1759092877943,4.81718772,207.59,207.55,37.52]
[1759092878143,4.81765187,207.57,207.53,91.34253361]
[1759092878389,0.72,207.56,207.54,37.52]
[1759092878550,0.72,207.55,207.54,37.52]
[1759092880855,5.53811611,207.55,207.54,37.52]
[1759092882464,5.53811611,207.55,207.5,17.20100769]
[1759092882639,0.72,207.54,207.51,37.52]
[1759092882840,0.72,207.53,207.51,37.52]
[1759092883054,5.53860392,207.53,207.51,37.52]
[1759092883557,5.53860392,207.53,207.5,2.60416144]
[1759092883757,5.53860392,207.53,207.52,37.52]
[1759092885449,5.53860392,207.53,207.48,105.3]
[1759092885664,5.53860392,207.53,207.49,40.12416144]
[1759092886048,5.53860392,207.53,207.49,37.52]
[1759092886240,5.53860392,207.53,207.49,40.12416144]
[1759092887360,0.72,207.53,207.49,40.12416144]
[1759092888154,0.72,207.53,207.49,7.42251145]
[1759092888336,0.72,207.53,207.5,37.52]
[1759092891049,4.81874515,207.53,207.49,4.81835001]
[1759092891247,0.66,207.52,207.5,37.52]
[1759092891640,0.66,207.52,207.48,107.90416144]
[1759092891966,0.66,207.52,207.49,37.52]
[1759092892342,0.66,207.53,207.49,37.52]
[1759092892541,0.66,207.53,207.5,37.5]
[1759092894559,5.47862417,207.53,207.5,37.5]
[1759092894863,5.47862417,207.53,207.51,37.5]
[1759092895763,0.66,207.52,207.48,29.26827666]
[1759092895965,4.81862417,207.53,207.48,12.04412969]
[1759092895966,0.66,207.51,207.48,12.04412969]
[1759092896158,0.66,207.5,207.49,37.5]
[1759092896946,5.47862417,207.53,207.49,37.5]
[1759092897249,0.66,207.52,207.49,37.5]
[1759092897475,0.66,207.51,207.5,37.5]
[1759092897954,5.47904486,207.51,207.5,37.5]
[1759092899944,17.52665702,207.51,207.45,7.42278561]
[1759092900173,0.66,207.5,207.46,37.5]
[1759092900366,0.66,207.49,207.46,37.5]
[1759092900543,16.86665702,207.51,207.46,37.5]
[1759092900740,0.66,207.49,207.46,37.5]
[1759092901355,0.66,207.49,207.44,59.68066507]
[1759092901549,0.66,207.49,207.45,37.5]
[1759092901746,0.66,207.48,207.46,37.5]
[1759092901971,5.47975898,207.48,207.46,37.5]
[1759092903147,12.04761216,207.51,207.46,37.5]
[1759092903353,0.66,207.49,207.46,37.5]
[1759092904971,5.47955052,207.49,207.46,37.5]
[1759092906056,0.66,207.48,207.42,0.2]
[1759092906256,0.66,207.48,207.43,63.5]
[1759092906472,0.66,207.47,207.43,63.5]
[1759092906648,0.66,207.46,207.43,63.5]
[1759092906849,19.47248539,207.49,207.43,37.5]
[1759092907158,0.66,207.48,207.43,37.5]
[1759092907467,0.66,207.47,207.43,37.5]
[1759092908050,4.82043865,207.45,207.43,37.5]
[1759092908257,4.82043865,207.45,207.42,0.2]
[1759092908258,4.82043865,207.45,207.44,37.5]
[1759092908453,5.48043865,207.45,207.44,37.5]
[1759092910355,5.48043865,207.45,207.42,0.2]
[1759092910553,5.48043865,207.45,207.43,37.5]
[1759092910876,16.86909581,207.48,207.42,0.2]
[1759092911078,0.66,207.45,207.43,37.5]
[1759092911973,5.48050444,207.45,207.43,37.5]
[1759092912459,0.66,207.44,207.43,37.5]
[1759092915382,0.66,207.45,207.43,37.5]
[1759092916480,5.48046038,207.45,207.43,37.5]
[1759092918080,0.66,207.44,207.43,37.5]
[1759092919080,0.66,207.44,207.42,0.2]
[1759092919279,0.66,207.44,207.43,37.5]
[1759092920098,0.66,207.48,207.43,37.5]
[1759092920456,0.66,207.47,207.43,37.5]
[1759092920865,12.04811883,207.51,207.43,49.54811883]
[1759092921058,17.57746987,207.5,207.43,12.04811883]
[1759092921258,17.57746987,207.5,207.44,37.5]
[1759092921259,0.71,207.49,207.44,37.5]
[1759092921459,0.71,207.48,207.44,37.5]
[1759092921671,0.71,207.47,207.44,37.5]
[1759092921976,0.71,207.46,207.44,37.5]
[1759092922871,5.5303107,207.46,207.42,93.09559401]
[1759092923074,0.71,207.45,207.43,37.5]
[1759092923278,0.71,207.44,207.43,37.5]
[1759092924560,4.8203107,207.46,207.43,37.5]
[1759092925382,5.5303107,207.46,207.43,37.5]
[1759092927984,0.71,207.46,207.43,37.5]
[1759092929182,5.53021668,207.46,207.43,37.5]
[1759092930363,0.71,207.45,207.43,37.5]
[1759092931581,5.53046434,207.45,207.43,37.5]
[1759092935387,5.53046434,207.45,207.42,12.24944677]
[1759092935562,5.53046434,207.45,207.43,37.5]
[1759092935892,0.71,207.45,207.43,37.5]
[1759092936085,4.82024662,207.46,207.43,37.5]
[1759092936284,5.53024662,207.46,207.43,37.5]
[1759092936592,0.71,207.5,207.44,13.59559401]
[1759092936891,5.52904486,207.51,207.46,13.59559401]
[1759092937202,0.71,207.5,207.47,37.5]
[1759092937575,5.52941914,207.5,207.47,37.5]
[1759092937778,4.81941914,207.5,207.47,37.5]
[1759092938088,0.71,207.49,207.48,37.5]
[1759092938281,2.37902377,207.49,207.43,26.0]
[1759092938483,0.71,207.48,207.46,12.0475512]
[1759092938797,2.37902377,207.47,207.43,26.0]
[1759092939002,0.71,207.46,207.44,37.5]
[1759092939302,0.71,207.45,207.44,37.5]
[1759092939496,1.66902377,207.47,207.44,37.5]